bitfinex-derivatives/quotes_BTCF0:USTF0_20251206
["timestamp","ask_amount","ask_price","bid_price","bid_amount"]
[1765026441162,0.05828,89653.0,89652.0,0.05677726]
[1765026442062,0.05928,89653.0,89652.0,0.05677726]
[1765026442261,0.06028,89653.0,89652.0,0.05677726]
[1765026458783,0.06028,89653.0,89652.0,0.02847726]
[1765026459082,0.06028,89653.0,89652.0,0.05845726]
[1765026461881,0.00855,89642.0,89640.0,0.05829]
[1765026462087,0.05559,89641.0,89640.0,0.05829]
[1765026462485,0.0197045,89642.0,89630.0,0.05829]
[1765026462486,0.05559,89631.0,89630.0,0.05829]
[1765026463086,0.05559,89631.0,89630.0,1.55829]
[1765026463982,0.05559,89631.0,89630.0,1.5714459]
[1765026464390,0.05659,89631.0,89630.0,1.59189056]
[1765026464883,0.05659,89631.0,89630.0,1.59089056]
[1765026465576,0.05659,89631.0,89630.0,1.58889056]
[1765026465783,0.05659,89631.0,89630.0,1.59089056]
[1765026470089,0.05659,89631.0,89630.0,1.57973466]
[1765026472590,0.001,89631.0,89630.0,1.59089056]
[1765026473886,0.001,89631.0,89630.0,1.99089056]
[1765026478298,0.03093,89631.0,89630.0,1.59089056]
[1765026478501,0.001,89631.0,89630.0,1.59089056]
[1765026480304,0.03093,89631.0,89630.0,1.57973466]
[1765026482706,0.001,89631.0,89630.0,1.57973466]
[1765026486801,0.02952,89631.0,89630.0,1.57973466]
[1765026487014,0.05806,89631.0,89630.0,1.57973466]
[1765026487310,0.02952,89631.0,89630.0,1.57973466]
[1765026488616,0.001,89631.0,89630.0,1.57973466]
[1765026490411,0.02952,89631.0,89630.0,1.57973466]
[1765026490620,0.001,89631.0,89630.0,1.99973466]
[1765026494820,0.001,89631.0,89630.0,1.77973466]
[1765026496120,0.001,89631.0,89630.0,1.92973466]
[1765026496921,0.001,89631.0,89630.0,1.63973466]
[1765026500219,0.001,89631.0,89630.0,1.88973466]
[1765026512536,0.00016735,89639.0,89638.0,0.05742]
[1765026512833,0.0111531,89654.0,89653.0,0.05742]
[1765026512834,0.05729,89654.0,89653.0,0.05742]
[1765026513130,0.02765928,89654.0,89653.0,0.05742]
[1765026513330,0.21990054,89670.0,89669.0,0.0295]
[1765026513536,0.11241056,89670.0,89669.0,0.0295]
[1765026513731,0.51241056,89670.0,89669.0,0.0295]
[1765026514928,0.51441056,89670.0,89669.0,0.0295]
[1765026515127,0.51941056,89670.0,89669.0,0.0305]
[1765026515636,0.51741056,89670.0,89669.0,0.0305]
[1765026515833,0.51541056,89670.0,89669.0,0.0295]
[1765026517142,0.05729,89663.0,89662.0,0.068572]
[1765026517324,0.08482956,89663.0,89662.0,0.068572]
[1765026518336,0.08582956,89663.0,89662.0,0.068572]
[1765026518538,0.08682956,89663.0,89662.0,0.068572]
[1765026520736,0.05929,89663.0,89662.0,0.068572]
[1765026522942,0.08668571,89663.0,89662.0,0.068572]
[1765026523637,0.08668571,89663.0,89662.0,0.05742]
[1765026525850,0.05929,89663.0,89662.0,0.05742]
[1765026533446,0.068362,89662.0,89661.0,0.00016735]
[1765026535243,0.070362,89662.0,89661.0,0.00016735]
[1765026536262,0.069362,89662.0,89661.0,0.00016735]
[1765026536441,0.070362,89662.0,89661.0,0.00016735]
[1765026536645,0.069362,89662.0,89661.0,0.00016735]
[1765026536845,0.071362,89662.0,89661.0,0.00016735]
[1765026538551,0.070362,89662.0,89661.0,0.00016735]
[1765026538752,0.071362,89662.0,89661.0,0.00016735]
[1765026540161,0.09877084,89662.0,89661.0,0.00016735]
[1765026547250,0.09876631,89662.0,89661.0,0.02756735]
[1765026547451,0.09876631,89662.0,89661.0,0.00016735]
[1765026552362,0.11606631,89662.0,89661.0,0.00016735]
[1765026556052,0.11606631,89662.0,89649.0,0.0274]
[1765026556053,0.05471,89650.0,89649.0,0.0274]
[1765026556253,0.05471,89645.0,89644.0,0.0684841]
[1765026556459,0.05471,89645.0,89644.0,0.05733]
[1765026556664,0.05471,89645.0,89644.0,0.0274]
[1765026559169,0.05471,89645.0,89644.0,0.0284]
[1765026559668,0.05471,89645.0,89644.0,0.05833]
[1765026559868,0.05571,89645.0,89644.0,0.05833]
[1765026560070,0.05671,89645.0,89644.0,0.05733]
[1765026560462,0.05571,89645.0,89644.0,0.05733]
[1765026560664,0.05671,89645.0,89644.0,0.05733]
[1765026586186,0.08425878,89645.0,89644.0,0.05733]
[1765026586490,0.08425878,89645.0,89638.0,0.0172]
[1765026586491,0.05497,89639.0,89638.0,0.02808]
[1765026586680,0.05497,89639.0,89638.0,0.05688]
[1765026588288,0.05497,89639.0,89638.0,0.05788]
[1765026589281,0.08251241,89639.0,89638.0,0.05788]
[1765026590195,0.05497,89639.0,89638.0,0.05788]
[1765026595595,0.05497,89639.0,89638.0,0.0721]
[1765026597694,0.05497,89639.0,89638.0,0.05788]
[1765026604298,0.05597,89639.0,89638.0,0.05788]
[1765026604507,0.05697,89639.0,89638.0,0.05688]
[1765026604997,0.05597,89639.0,89638.0,0.05688]
[1765026605193,0.05697,89639.0,89638.0,0.05688]
[1765026612896,0.08464658,89639.0,89638.0,0.05688]
[1765026652744,0.05552,89637.0,89636.0,0.00016735]
[1765026652949,0.08319658,89637.0,89636.0,0.00016735]
[1765026653149,0.08319658,89637.0,89636.0,0.05515735]
[1765026654450,0.08419658,89637.0,89636.0,0.05515735]
[1765026663968,0.08405604,89637.0,89636.0,0.05515735]
[1765026672376,0.08405604,89637.0,89636.0,0.06961735]
[1765026672776,0.08405604,89637.0,89636.0,0.05515735]
[1765026672987,0.05652,89637.0,89636.0,0.05515735]
[1765026677381,0.05652,89637.0,89636.0,0.07200735]
[1765026677681,0.001,89637.0,89636.0,0.07200735]
[1765026678282,0.02877,89637.0,89636.0,0.07200735]
[1765026678685,0.02777,89637.0,89636.0,0.07200735]
[1765026678876,0.02877,89637.0,89636.0,0.07200735]
[1765026679485,0.001,89637.0,89636.0,0.07200735]
[1765026679676,0.02877,89637.0,89636.0,0.07200735]
[1765026679876,0.05483,89637.0,89636.0,0.07200735]
[1765026680684,0.05483,89637.0,89636.0,0.07300735]
[1765026682984,0.08227008,89637.0,89636.0,0.07300735]
[1765026683394,0.08227008,89637.0,89636.0,0.07200735]
[1765026686400,0.08227008,89637.0,89636.0,0.05615735]
[1765026686901,0.08227008,89637.0,89636.0,0.05515735]
[1765026687400,0.08227008,89637.0,89636.0,0.07200735]
[1765026688300,0.08327008,89637.0,89636.0,0.07200735]
[1765026689100,0.08227008,89637.0,89636.0,0.05515735]
[1765026689603,0.08227008,89637.0,89636.0,0.05615735]
[1765026693005,0.08227008,89637.0,89636.0,0.05515735]
[1765026693610,0.05483,89637.0,89636.0,0.05515735]
[1765026701511,0.02777,89637.0,89636.0,0.07221735]
[1765026702416,0.05733,89637.0,89636.0,0.07221735]
[1765026702915,0.05733,89637.0,89636.0,0.07321735]
[1765026703118,0.08428715,89637.0,89636.0,0.07321735]
[1765026706916,0.08428715,89637.0,89636.0,0.07221735]
[1765026707120,0.08428715,89637.0,89636.0,0.07321735]
[1765026707318,0.08428715,89637.0,89636.0,0.08437255]
[1765026709020,0.08428715,89637.0,89636.0,0.08337255]
[1765026709220,0.08428715,89637.0,89636.0,0.08437255]
[1765026711016,0.08428715,89637.0,89636.0,0.00116735]
[1765026711216,0.08428715,89637.0,89636.0,1e-08]
[1765026712319,0.0567,89629.0,89628.0,0.00016735]
[1765026713418,0.0567,89629.0,89628.0,0.00116735]
[1765026715730,0.0567,89629.0,89628.0,0.03059735]
[1765026720634,0.0567,89629.0,89628.0,0.08486355]
[1765026731945,0.05836,89638.0,89637.0,0.05712]
[1765026732244,0.08590034,89638.0,89637.0,0.05712]
[1765026733045,0.08690034,89638.0,89637.0,0.05712]
[1765026733847,0.08790034,89638.0,89637.0,0.05712]
[1765026734846,0.08690034,89638.0,89637.0,0.05712]
[1765026735144,0.08790034,89638.0,89637.0,0.05712]
[1765026738255,0.10445034,89638.0,89637.0,0.02999]
[1765026739158,0.10345034,89638.0,89637.0,0.02999]
[1765026739457,0.10445034,89638.0,89637.0,0.02999]
[1765026742256,0.10445034,89638.0,89637.0,0.05712]
[1765026746557,0.10445034,89638.0,89637.0,0.02999]
[1765026746860,0.10445034,89638.0,89637.0,0.05712]
[1765026747658,0.10345034,89638.0,89637.0,0.05712]
[1765026747862,0.10445034,89638.0,89637.0,0.05712]
[1765026748962,0.10345034,89638.0,89637.0,0.05712]
[1765026749162,0.10445034,89638.0,89637.0,0.05712]
[1765026759272,0.10345034,89638.0,89637.0,0.05712]
[1765026759475,0.10445034,89638.0,89637.0,0.05712]
[1765026759673,0.10345034,89638.0,89637.0,0.05712]
[1765026759873,0.10445034,89638.0,89637.0,0.05712]
[1765026766879,0.08790034,89638.0,89637.0,0.05712]
[1765026767883,0.08690034,89638.0,89637.0,0.05712]
[1765026768086,0.08790034,89638.0,89637.0,0.05712]
[1765026768479,0.08690034,89638.0,89637.0,0.05712]
[1765026768782,0.08790034,89638.0,89637.0,0.05712]
[1765026769692,0.08690034,89638.0,89637.0,0.05712]
[1765026769875,0.08790034,89638.0,89637.0,0.05712]
[1765026777891,0.08790034,89638.0,89637.0,0.0682751]
[1765026781590,0.08590034,89638.0,89637.0,0.0682751]
[1765026793495,0.08590034,89638.0,89637.0,0.0837351]
[1765026794494,0.517,89656.0,89637.0,0.0837351]
[1765026794495,0.05747735,89653.0,89652.0,0.05611]
[1765026794690,0.08471896,89653.0,89652.0,0.05611]
[1765026795495,0.08771896,89653.0,89652.0,0.05611]
[1765026796811,0.08871896,89653.0,89652.0,0.05611]
[1765026797106,0.08671896,89653.0,89652.0,0.05611]
[1765026797308,0.08571896,89653.0,89652.0,0.05611]
[1765026797704,0.08671896,89653.0,89652.0,0.05611]
[1765026798316,0.08571896,89653.0,89652.0,0.05611]
[1765026798502,0.08671896,89653.0,89652.0,0.05611]
[1765026799800,0.08571896,89653.0,89652.0,0.05611]
[1765026800311,0.08671896,89653.0,89652.0,0.05611]
[1765026804106,0.08471896,89653.0,89652.0,0.05611]
[1765026804306,0.08671896,89653.0,89652.0,0.05611]
[1765026804705,0.08571896,89653.0,89652.0,0.05611]
[1765026806414,0.08671896,89653.0,89652.0,0.05611]
[1765026813022,0.05947735,89653.0,89652.0,0.05611]
[1765026815416,0.05847735,89653.0,89652.0,0.05611]
[1765026815711,0.05947735,89653.0,89652.0,0.05611]
[1765026816205,0.05847735,89653.0,89652.0,0.05611]
[1765026816707,0.05947735,89653.0,89652.0,0.05611]
[1765026817012,0.05847735,89653.0,89652.0,0.05611]
[1765026817216,0.05947735,89653.0,89652.0,0.05611]
[1765026818420,0.05847735,89653.0,89652.0,0.07141]
[1765026818618,0.05947735,89653.0,89652.0,0.07141]
[1765026819213,0.05847735,89653.0,89652.0,0.07141]
[1765026819413,0.05947735,89653.0,89652.0,0.07141]
[1765026819917,0.05847735,89653.0,89652.0,0.07141]
[1765026820120,0.05747735,89653.0,89652.0,0.07141]
[1765026823111,0.08465639,89653.0,89652.0,0.07141]
[1765026827415,0.05610639,89653.0,89652.0,0.07141]
[1765026827724,0.02892735,89653.0,89652.0,0.07141]
[1765026831621,0.00016735,89653.0,89652.0,0.07141]
[1765026833229,0.05498735,89653.0,89652.0,0.07141]
[1765026833625,0.02798735,89653.0,89652.0,0.07141]
[1765026837725,0.00016735,89653.0,89652.0,0.07141]
[1765026842033,0.02779735,89653.0,89652.0,0.07141]
[1765026846434,0.05685735,89653.0,89652.0,0.07141]
[1765026851044,0.05685735,89653.0,89652.0,0.0825632]
[1765026870457,0.05685735,89653.0,89652.0,0.0672632]
[1765026870664,0.05685735,89653.0,89652.0,0.0676132]
[1765026872757,0.05685735,89653.0,89636.0,0.1380952]
[1765026872758,0.0558,89637.0,89636.0,0.1380952]
[1765026872960,0.02774,89637.0,89636.0,0.1380952]
[1765026874160,0.02874,89637.0,89636.0,0.1420952]
[1765026874571,0.001,89637.0,89636.0,0.1420952]
[1765026874765,0.001,89637.0,89636.0,0.4456352]
[1765026875359,0.001,89637.0,89636.0,0.4466352]
[1765026876164,0.02874,89637.0,89636.0,0.4476352]
[1765026876359,0.0568,89637.0,89636.0,0.4476352]
[1765026877762,0.0568,89637.0,89636.0,0.4466352]
[1765026877965,0.0568,89637.0,89636.0,0.4476352]
[1765026878565,0.0568,89637.0,89636.0,0.4466352]
[1765026878762,0.0568,89637.0,89636.0,0.4476352]
[1765026880671,0.02874,89637.0,89636.0,0.4476352]
[1765026880969,0.001,89637.0,89636.0,0.4476352]
[1765026883860,0.0568,89637.0,89636.0,0.4476352]
[1765026885771,0.02874,89637.0,89636.0,0.4476352]
[1765026886174,0.001,89637.0,89636.0,0.4476352]
[1765026891369,0.00066538,89637.0,89636.0,0.4476352]
[1765026900173,0.00066538,89637.0,89636.0,0.0876352]
[1765026900174,0.05937538,89637.0,89636.0,0.0876352]
[1765026900474,0.05937538,89637.0,89636.0,0.06246]
[1765026900980,0.07006538,89637.0,89636.0,0.06246]
[1765026901280,0.05937538,89637.0,89636.0,0.06246]
[1765026918893,0.05937538,89637.0,89636.0,0.07706]
[1765026939117,0.00066538,89637.0,89636.0,0.43706]
[1765026947612,0.00066538,89637.0,89636.0,0.95418]
[1765026956525,0.05770735,89653.0,89652.0,0.06832]
[1765026957712,0.05870735,89653.0,89652.0,0.06832]
[1765026957909,0.05970735,89653.0,89652.0,0.0794732]
[1765026962530,0.00216735,89653.0,89652.0,0.5094732]
[1765026969034,0.02990735,89653.0,89652.0,0.5094732]
[1765026974533,0.02990735,89653.0,89652.0,0.1394732]
[1765026975637,0.00216735,89653.0,89652.0,0.3494732]
[1765026985238,0.02990735,89653.0,89652.0,0.3494732]
[1765026985646,0.00216735,89653.0,89652.0,0.3494732]
[1765027002255,0.05966735,89653.0,89652.0,0.0677032]
[1765027002659,0.05966735,89653.0,89652.0,0.4331232]
[1765027003362,0.05966735,89653.0,89652.0,0.2031232]
[1765027009268,0.05966735,89653.0,89652.0,0.0831232]
[1765027039296,0.05966735,89653.0,89652.0,0.4331232]
[1765027042998,0.03021735,89653.0,89652.0,0.4331232]
[1765027044501,0.05936735,89653.0,89652.0,0.4331232]
[1765027048496,0.05936735,89653.0,89652.0,0.0677032]
[1765027060207,0.05936735,89653.0,89652.0,0.0854432]
[1765027063307,0.05936735,89653.0,89652.0,1.5854432]
[1765027068108,0.03021735,89653.0,89652.0,1.5854432]
[1765027070512,0.05758735,89653.0,89652.0,1.5854432]
[1765027070712,0.00216735,89653.0,89652.0,1.5854432]
[1765027074521,0.03153735,89653.0,89652.0,1.5854432]
[1765027075025,0.00216735,89653.0,89652.0,1.5854432]
[1765027077522,0.00216735,89653.0,89652.0,2.1023632]
[1765027081522,0.00216735,89653.0,89652.0,0.6023632]
[1765027083723,0.03029735,89653.0,89652.0,0.6023632]
[1765027086519,0.05782735,89653.0,89652.0,0.6023632]
[1765027100125,0.03029735,89653.0,89652.0,0.6023632]
[1765027100531,0.00216735,89653.0,89652.0,0.6023632]
[1765027107732,0.03029735,89653.0,89652.0,0.6023632]
[1765027107935,0.00216735,89653.0,89652.0,0.6023632]
[1765027108731,0.03029735,89653.0,89652.0,0.6023632]
[1765027109337,0.05782735,89653.0,89652.0,0.6023632]
[1765027109832,0.03029735,89653.0,89652.0,0.6023632]
[1765027113139,0.00216735,89653.0,89652.0,0.6023632]
[1765027114132,0.02918735,89653.0,89652.0,0.6023632]
[1765027115046,0.05835735,89653.0,89652.0,0.6023632]
[1765027116753,0.02918735,89653.0,89652.0,0.6023632]
[1765027117553,0.05835735,89653.0,89652.0,0.6023632]
[1765027121257,0.05835735,89653.0,89652.0,0.05655]
[1765027121459,0.05835735,89653.0,89652.0,0.57347]
[1765027121655,0.05619,89647.0,89646.0,0.12998724]
[1765027121953,0.07264,89642.0,89641.0,0.02967]
[1765027122160,0.07264,89642.0,89641.0,0.05773]
[1765027124455,0.07264,89642.0,89641.0,0.05973]
[1765027124961,0.07264,89642.0,89641.0,0.05773]
[1765027125157,0.07264,89642.0,89641.0,0.05873]
[1765027128662,0.05619,89642.0,89641.0,0.05873]
[1765027140668,0.02702,89642.0,89641.0,0.05873]
[1765027140870,0.22320876,89651.0,89650.0,0.0582]
[1765027141070,0.05885,89651.0,89650.0,0.0582]
[1765027141873,0.05985,89651.0,89650.0,0.0582]
[1765027142874,0.06085,89651.0,89650.0,0.0582]
[1765027149277,0.08796841,89651.0,89650.0,0.0582]
[1765027150984,0.08796841,89651.0,89650.0,0.0707]
[1765027151882,0.08796841,89651.0,89650.0,0.0582]
[1765027152082,0.02911841,89651.0,89650.0,0.07488]
[1765027152282,0.05889841,89651.0,89650.0,0.07488]
[1765027152983,0.03178,89651.0,89650.0,0.07488]
[1765027153684,0.002,89651.0,89650.0,0.07488]
[1765027157387,0.03178,89651.0,89650.0,0.07488]
[1765027162784,0.06085,89651.0,89650.0,0.07488]
[1765027163494,0.002,89651.0,89650.0,0.07488]
[1765027163691,0.03178,89651.0,89650.0,0.07488]
[1765027163888,0.06085,89651.0,89650.0,0.07488]
[1765027164082,0.03178,89651.0,89650.0,0.07488]
[1765027165988,0.002,89651.0,89650.0,0.07488]
[1765027168498,0.03178,89651.0,89650.0,0.07488]
[1765027174591,0.002,89651.0,89650.0,0.07488]
[1765027179100,0.002,89651.0,89650.0,0.15511488]
[1765027184804,0.02994,89651.0,89650.0,0.15511488]
[1765027185204,0.02994,89651.0,89650.0,0.07488]
[1765027185811,0.02994,89651.0,89650.0,0.15511488]
[1765027186119,0.02994,89651.0,89650.0,0.07488]
[1765027187306,0.002,89651.0,89650.0,0.07488]
[1765027194129,0.002,89651.0,89650.0,0.15511488]
[1765027199131,0.002,89651.0,89650.0,0.07488]
[1765027201028,0.002,89651.0,89650.0,0.45488]
[1765027206037,0.001,89651.0,89650.0,0.45488]
[1765027206230,0.001,89651.0,89650.0,0.45688]
[1765027207037,0.16427531,89670.0,89652.0,0.05842]
[1765027207236,0.16427531,89670.0,89652.0,0.43842]
[1765027207537,0.16427531,89670.0,89652.0,0.45572]
[1765027207736,0.18136531,89670.0,89652.0,0.45572]
[1765027208633,0.18136531,89670.0,89652.0,0.45772]
[1765027209238,0.00116735,89653.0,89652.0,0.46572]
[1765027216247,0.02894735,89653.0,89652.0,0.46572]
[1765027216746,0.00116735,89653.0,89652.0,0.46572]
[1765027220140,0.00116735,89653.0,89652.0,0.54598379]
[1765027223155,0.00116735,89653.0,89652.0,0.46572]
[1765027262676,0.05819735,89653.0,89652.0,0.46572]
[1765027266288,0.03038735,89653.0,89652.0,0.46572]
[1765027267186,0.00116735,89653.0,89652.0,0.46572]
[1765027269690,0.03038735,89653.0,89652.0,0.46572]
[1765027271291,0.00116735,89653.0,89652.0,0.46572]
[1765027271489,0.03038735,89653.0,89652.0,0.46572]
[1765027271690,0.00116735,89653.0,89652.0,0.46572]
[1765027279800,0.03038735,89653.0,89652.0,0.46572]
[1765027280402,0.00116735,89653.0,89652.0,0.46572]
[1765027321546,0.02917735,89653.0,89652.0,0.46572]
[1765027321846,0.00116735,89653.0,89652.0,0.46572]
[1765027322149,0.0572,89668.0,89667.0,0.05716]
[1765027322354,0.08412192,89668.0,89667.0,0.05716]
[1765027323054,0.0572,89668.0,89667.0,0.05716]
[1765027323253,0.0582,89668.0,89667.0,0.05716]
[1765027323454,0.0582,89668.0,89667.0,0.05816]
[1765027331558,0.02856,89668.0,89667.0,0.05816]
[1765027331964,0.0582,89668.0,89667.0,0.05816]
[1765027336662,0.07085,89668.0,89667.0,0.05816]
[1765027336866,0.07085,89668.0,89667.0,0.02975]
[1765027337568,0.07085,89668.0,89667.0,0.05816]
[1765027339263,0.09770428,89668.0,89667.0,0.05816]
[1765027339469,0.09770428,89668.0,89667.0,0.001]
[1765027346078,0.09770428,89668.0,89659.0,0.02891735]
[1765027346079,0.0683522,89660.0,89659.0,0.02891735]
[1765027346267,0.11295079,89660.0,89659.0,0.00016735]
[1765027346679,0.0749,89649.0,89648.0,0.0399037]
[1765027346875,0.0749,89649.0,89648.0,0.0683137]
[1765027348079,0.0759,89649.0,89648.0,0.0763137]
[1765027348782,0.0749,89649.0,89648.0,0.0703137]
[1765027349174,0.0749,89649.0,89648.0,0.0723137]
[1765027350279,0.0572,89649.0,89648.0,0.0723137]
[1765027350784,0.0572,89649.0,89648.0,0.0683137]
[1765027351086,0.0582,89649.0,89648.0,0.0703137]
[1765027351389,0.0582,89649.0,89648.0,0.0683137]
[1765027351579,0.0582,89649.0,89648.0,0.0693137]
[1765027353680,0.0582,89649.0,89648.0,0.05816]
[1765027353888,0.0582,89649.0,89648.0,0.001]
[1765027358592,0.0582,89649.0,89648.0,0.03016]
[1765027360402,0.0582,89649.0,89648.0,0.001]
[1765027365198,0.0582,89649.0,89648.0,0.03016]
[1765027365399,0.0582,89649.0,89648.0,0.001]
[1765027365694,0.05637,89641.0,89640.0,0.05647735]
[1765027367192,0.05637,89641.0,89640.0,0.05847735]
[1765027368391,0.05637,89641.0,89640.0,0.05647735]
[1765027368597,0.05637,89641.0,89640.0,0.05847735]
[1765027369800,0.05637,89641.0,89640.0,0.05647735]
[1765027369993,0.05637,89641.0,89640.0,0.05847735]
[1765027371597,0.0173,89656.0,89644.0,0.0284841]
[1765027371598,0.05637,89650.0,89644.0,0.0284841]
[1765027371801,0.05637,89650.0,89649.0,0.05631]
[1765027373102,0.02764,89650.0,89649.0,0.07364]
[1765027373298,0.05673,89650.0,89649.0,0.07364]
[1765027373902,0.05773,89650.0,89649.0,0.07364]
[1765027374301,0.05773,89650.0,89649.0,0.07464]
[1765027374705,0.05673,89650.0,89649.0,0.07464]
[1765027375894,0.0111524,89659.0,89649.0,0.07464]
[1765027376095,0.05750735,89657.0,89656.0,0.05775]
[1765027376297,0.08524057,89657.0,89656.0,0.05775]
[1765027376497,0.05750735,89657.0,89656.0,0.05775]
[1765027403727,0.05750735,89657.0,89653.0,0.0111531]
[1765027403728,0.07621,89654.0,89653.0,0.0111531]
[1765027404130,0.07621,89654.0,89653.0,0.0675131]
[1765027406123,0.07621,89654.0,89653.0,0.0685131]
[1765027409346,0.07621,89654.0,89653.0,0.05736]
[1765027409545,0.07621,89654.0,89653.0,0.02814]
[1765027409849,0.10377394,89654.0,89653.0,0.001]
[1765027411745,0.05888,89644.0,89643.0,0.0678443]
[1765027413949,0.05888,89644.0,89643.0,0.0698443]
[1765027421463,0.05888,89644.0,89643.0,0.02979]
[1765027421662,0.05888,89644.0,89643.0,0.002]
[1765027423463,0.05888,89641.0,89640.0,0.00016735]
[1765027426164,0.05888,89641.0,89640.0,0.02795735]
[1765027427366,0.05888,89641.0,89640.0,0.00016735]
[1765027441273,0.05888,89641.0,89640.0,0.02913735]
[1765027441776,0.05888,89641.0,89640.0,0.00016735]
[1765027442174,0.05888,89641.0,89640.0,0.02853735]
[1765027442866,0.05888,89641.0,89640.0,0.00016735]
[1765027444266,0.05454,89623.0,89622.0,0.05797]
[1765027444467,0.0796959,89630.0,89629.0,0.05797]
[1765027445965,0.05454,89630.0,89629.0,0.05797]
[1765027446370,0.0656954,89635.0,89634.0,0.0759]
[1765027447572,0.0656954,89635.0,89634.0,0.0769]
[1765027451275,0.09320813,89635.0,89634.0,0.0769]
[1765027453277,0.0656954,89635.0,89634.0,0.0769]
[1765027453680,0.02736735,89638.0,89637.0,0.0759]
[1765027453980,0.00016735,89638.0,89637.0,0.0759]
[1765027457487,0.05454,89653.0,89652.0,0.0759]
[1765027457679,0.0656926,89657.0,89656.0,0.05797]
[1765027457982,0.09319957,89657.0,89656.0,0.05797]
[1765027458379,0.08204697,89657.0,89656.0,0.05797]
[1765027458684,0.05454,89657.0,89656.0,0.05797]
[1765027458885,0.05454,89657.0,89656.0,0.00797]
[1765027459087,0.05454,89657.0,89656.0,0.03634]
[1765027460787,0.05554,89657.0,89656.0,0.03634]
[1765027475915,0.05554,89657.0,89656.0,0.02837]
[1765027477114,0.05554,89657.0,89656.0,0.05552]
[1765027487222,0.08298562,89657.0,89656.0,0.05552]
[1765027489028,0.08298562,89657.0,89656.0,0.02837]
[1765027489326,0.057,89651.0,89650.0,0.0111534]
[1765027490524,0.057,89651.0,89650.0,0.0408734]
[1765027490828,0.057,89651.0,89650.0,0.0418734]
[1765027491028,0.057,89651.0,89650.0,0.0690234]
[1765027501738,0.02891,89658.0,89657.0,0.0670426]
[1765027501932,0.05593,89658.0,89657.0,0.0670426]
[1765027502333,0.05609735,89665.0,89664.0,0.0670417]
[1765027503437,0.05809735,89665.0,89664.0,0.0670417]
[1765027504337,0.05909735,89665.0,89664.0,0.0670417]
[1765027505035,0.05909735,89665.0,89664.0,0.07802672]
[1765027505345,0.05909735,89665.0,89664.0,0.06687502]
[1765027528750,0.05909735,89665.0,89664.0,0.05589]
[1765027530952,0.05909735,89665.0,89664.0,0.06691053]
[1765027532161,0.05909735,89665.0,89664.0,0.05589]
[1765027534054,0.05909735,89665.0,89664.0,0.0671341]
[1765027541760,0.05909735,89665.0,89664.0,0.05589]
[1765027544265,0.05909735,89665.0,89664.0,0.06701317]
[1765027550663,0.03207735,89665.0,89664.0,0.06701317]
[1765027550967,0.00316735,89665.0,89664.0,0.06701317]
[1765027551368,0.03201735,89665.0,89664.0,0.06701317]
[1765027551565,0.00316735,89665.0,89664.0,0.07769317]
[1765027551772,0.00316735,89665.0,89664.0,0.48769317]
[1765027556076,0.00016735,89665.0,89664.0,0.48769317]
[1765027564683,0.00116735,89665.0,89664.0,0.49569317]
[1765027565276,0.001,89665.0,89664.0,0.49569317]
[1765027565480,0.001,89665.0,89664.0,0.49769317]
[1765027566083,0.001,89665.0,89664.0,0.49569317]
[1765027566279,0.001,89665.0,89664.0,0.49769317]
[1765027566986,0.05746735,89673.0,89672.0,0.05693]
[1765027567987,0.05746735,89673.0,89672.0,0.0680807]
[1765027568187,0.00016735,89673.0,89672.0,0.4917607]
[1765027569890,0.02930735,89673.0,89672.0,0.4917607]
[1765027570191,0.00016735,89673.0,89672.0,0.4917607]
[1765027571583,0.00016735,89673.0,89672.0,0.4887607]
[1765027571790,0.00016735,89673.0,89672.0,0.4917607]
[1765027576001,0.00016735,89673.0,89672.0,1.0085207]
[1765027576696,0.02930735,89673.0,89672.0,1.0085207]
[1765027580203,0.00016735,89673.0,89672.0,1.0085207]
[1765027580403,0.02930735,89673.0,89672.0,1.0085207]
[1765027582010,0.00016735,89673.0,89672.0,1.0085207]
[1765027584705,0.02930735,89673.0,89672.0,1.0085207]
[1765027585106,0.05746735,89673.0,89672.0,0.9978407]
[1765027586308,0.02930735,89673.0,89672.0,0.9978407]
[1765027586700,0.05746735,89673.0,89672.0,0.9978407]
[1765027586898,0.05746735,89673.0,89672.0,0.9978007]
[1765027589400,0.00016735,89673.0,89672.0,0.9978007]
[1765027589606,0.05746735,89673.0,89672.0,0.9978007]
[1765027589802,0.00016735,89673.0,89672.0,1.0087607]
[1765027590114,5e-08,89686.0,89685.0,0.0670091]
[1765027590309,0.08961509,89708.0,89707.0,0.0670064]
[1765027590612,0.08961509,89708.0,89707.0,0.5838864]
[1765027590812,0.01685,89724.0,89723.0,0.05586]
[1765027591012,0.0755,89724.0,89723.0,0.05586]
[1765027593112,0.0755,89724.0,89723.0,0.05686]
[1765027605624,0.0755,89724.0,89723.0,0.001]
[1765027605823,0.0755,89724.0,89723.0,0.0295]
[1765027607010,0.0755,89724.0,89723.0,0.001]
[1765027607516,0.0755,89724.0,89720.0,0.0111447]
[1765027607717,0.05865,89721.0,89720.0,0.0111447]
[1765027609517,0.05865,89721.0,89720.0,0.0670047]
[1765027623539,0.05865,89721.0,89720.0,0.05586]
[1765027635254,0.05865,89721.0,89720.0,0.0285]
[1765027635753,0.05865,89721.0,89720.0,0.05638]
[1765027640152,0.05865,89721.0,89720.0,0.05738]
[1765027649853,0.05865,89721.0,89720.0,0.001]
[1765027650762,0.05865,89721.0,89720.0,0.02865]
[1765027651162,0.05865,89721.0,89720.0,0.02765]
[1765027651955,0.07344,89716.0,89715.0,0.15765925]
[1765027653464,0.07344,89716.0,89715.0,0.07867943]
[1765027653864,0.07344,89716.0,89715.0,0.07767943]
[1765027654068,0.07344,89716.0,89715.0,0.07867943]
[1765027657168,0.07344,89716.0,89715.0,0.07767943]
[1765027657364,0.07344,89716.0,89715.0,0.07867943]
[1765027663082,0.07344,89716.0,89715.0,0.06753413]
[1765027663478,0.07344,89716.0,89715.0,0.14751395]
[1765027665078,0.07344,89716.0,89715.0,0.14651395]
[1765027665284,0.07344,89716.0,89715.0,0.14751395]
[1765027674490,0.07344,89716.0,89715.0,0.13606707]
[1765027675693,0.07344,89716.0,89715.0,0.13506707]
[1765027675991,0.07344,89716.0,89715.0,0.13606707]
[1765027676987,0.07344,89716.0,89715.0,0.14711626]
[1765027679190,0.07344,89716.0,89715.0,0.06713644]